Cogmind - Beta 14 @@@ ROGUE MODE // 2024.08.13 @ 00:24:47 Player: Brionna Result: Destroyed by G-34 Mercenary with Small Laser Performance ------------- Evolutions (1) 500 Regions Visited (2) 400 Robots Destroyed (19) 95 Value Destroyed (554) 554 Prototype IDs (0) 0 Alien Tech Used (0) 0 Bonus (0) 0 TOTAL SCORE: 1549 Bonus ------- None Cogmind --------- Core Integrity 0/400 Matter 118/300 Energy 100/100 System Corruption 8% Temperature Cool (19) Movement Core (200) Ox3 Location -9/Materials Parts ------- > --- POWER (1) -------- (None) > --- PROPULSION (2) --- (None) > --- UTILITY (4) ------ Hardened Light Armor Plating Hardened Light Armor Plating > --- WEAPON (2) ------- (None) > --- INVENTORY (5) ---- Ion Engine Ion Engine Aluminum Leg Aluminum Leg Peak State ------------ > --- POWER ------------ Improved Ion Engine > --- PROPULSION ------- Light Treads Light Treads > --- UTILITY ---------- Small Storage Unit Sensor Array Signal Interpreter ECM Suite > --- WEAPON ----------- Light EM Pulse Cannon Grenade Launcher > --- INVENTORY -------- Ion Engine Ion Engine Light Treads Aluminum Leg Aluminum Leg Seismic Detector Assault Rifle [Rating: 11] Favorites ----------- Power Ion Engine Engine Ion Engine Propulsion Light Treads Treads Light Treads Utility Small Storage Unit Device Sensor Array Storage Small Storage Unit Processor Signal Interpreter Protection Hardened Light Armor Plating Weapon EM Pulse Gun Energy Gun EM Pulse Gun Energy Cannon Light EM Pulse Cannon Ballistic Gun Assault Rifle Launcher Grenade Launcher Special Melee Weapon Datajack Build | -11 -10 -9 ------- Run | Yrd Mat Mat Slots Evolved 2 | . . 2 Power . | . . . Propulsion . | . . . Utility 2 | . . 2 Weapon . | . . . Parts Attached 24 | 6 6 12 Power 2 | 1 . 1 Engine 2 | 1 . 1 Core . | . . . Reactor . | . . . Propulsion 3 | 2 . 1 Treads 3 | 2 . 1 Leg . | . . . Wheel . | . . . Hover . | . . . Flight . | . . . Utility 11 | 1 2 8 Device 4 | . 1 3 Storage 1 | 1 . . Processor 2 | . 1 1 Hackware . | . . . Protection 4 | . . 4 Artifact . | . . . Weapon 8 | 2 4 2 Energy Gun 2 | 2 . . Energy Cannon 1 | . . 1 Ballistic Gun 2 | . 1 1 Ballistic Cannon . | . . . Launcher 2 | . 2 . Special Weapon . | . . . Impact Weapon . | . . . Slashing Weapon . | . . . Piercing Weapon . | . . . Special Melee Weapon 1 | . 1 . Unidentified Prototypes . | . . . Parts Lost 15 | . 1 14 Power 1 | . . 1 Propulsion 3 | . . 3 Utility 6 | . . 6 Weapon 5 | . 1 4 Highest Loss Streak 13 | . 1 13 To Critical Strikes . | . . . Average Slot Usage (%) 92 | . 96 88 Engine 12 | . 14 10 Treads 23 | . 28 19 Device 12 | . 4 20 Storage 12 | . 14 10 Processor 6 | . 5 6 Energy Gun 10 | . 15 5 Energy Cannon 2 | . . 4 Ballistic Gun 1 | . 2 . Launcher 9 | . 9 9 Peak Build Rating 11 | 6 7 11 Average Rating 7 | 4 6 9 On Entrance 4 | . 6 7 Naked Turns 3 | . . 3 Heaviest Build 22 | 13 16 22 Greatest Support 40 | 40 40 40 Greatest Overweight (x) 4 | . . 4 Average Overweight (x) . | . . . Largest Inventory Capacity 8 | 8 8 8 Average Capacity 7 | 6 8 7 Most Carried 8 | 4 8 8 Average Carried 6 | 2 7 6 Final Capacity 8 | 8 8 5 Final Carried 8 | 4 8 4 Class Distribution -------------------- 100% | Mutant Dominant Class ---------------- Mutant | -10/Materials Mutant | -9/Materials Resources | -11 -10 -9 ----------- Run | Yrd Mat Mat Matter Collected 434 | 206 155 73 Remotely . | . . . Salvage Created 558 | . 449 109 Parts 34 | . 24 10 Haulers Intercepted . | . . . Recyclers Shooed 2 | . 2 . Parts Field Recycled . | . . . Retrieved Matter . | . . . Parts Self-Destructed . | . . . Prevented . | . . . Kills | -11 -10 -9 ------- Run | Yrd Mat Mat Combat Hostiles Destroyed 12 | . 8 4 Guns 5 | . 4 1 Cannons 1 | . . 1 AOE 6 | . 4 2 Classes Destroyed 7 | . 5 2 Worker 1 | . 1 . Recycler 1 | . 1 . Mechanic 1 | . 1 . Watcher 4 | . 2 2 Swarmer 2 | . . 2 Grunt 9 | . 8 1 Sentry 1 | . . 1 Best Kill Streak 6 | . 6 2 Combat Bots Only 3 | . 3 2 Max Kills in Single Turn 2 | . 2 2 Gunslinging . | . . . Exploded 2 | . 2 2 Melee . | . . . Uniques/NPCs Destroyed . | . . . Combat | -11 -10 -9 -------- Run | Yrd Mat Mat Hostile Shots Fired 182 | . 36 146 Missed 46 | . 12 34 Damage Taken 2126 | . 410 1716 Core 493 | . 89 404 Absorbed by Shields . | . . . Core Remaining (%) 82 | 100 64 . Volleys Fired 60 | . 32 28 Largest 2 | . 2 2 Hottest 86 | . 80 86 Shots Fired 80 | . 43 37 Gun 47 | . 37 10 Cannon 11 | . . 11 Launcher 22 | . 6 16 Special . | . . . Kinetic 8 | . 2 6 Thermal 3 | . 3 . Explosive 22 | . 6 16 Electromagnetic 47 | . 32 15 Robot Hit Streak 9 | . 9 6 Robot Miss Streak 5 | . 5 1 Penetration Max . | . . . Secondary Targets . | . . . Shots Hit Robots 39 | . 23 16 Core Hits 33 | . 24 9 Critical Kills . | . . . Critical Parts Destroyed . | . . . Critical Strikes 1 | . 1 . Corrupt 1 | . 1 . Melee Attacks . | . . . Impact . | . . . Slashing . | . . . Piercing . | . . . Sneak Attacks . | . . . Combat Hostiles . | . . . Follow-up Attacks . | . . . Damage Inflicted 1301 | . 834 467 Guns 421 | . 296 125 Cannons 76 | . . 76 Explosions 804 | . 538 266 Melee . | . . . Ramming . | . . . Kinetic 66 | . . 66 Thermal 162 | . 124 38 Explosive 653 | . 425 228 Electromagnetic 420 | . 285 135 Impact . | . . . Slashing . | . . . Piercing . | . . . Highest Corruption 8 | . . 8 Average Corruption 8 | . . 8 Corruption Purged . | . . . Corruption Blocked . | . . . Effects 4 | . . 4 Matter Fused 1 | . . 1 Heat Flow Errors 1 | . . 1 Alerts 1 | . . 1 Weapon Failures 1 | . . 1 Overload Shots . | . . . Overflow Damage 1 | . 1 . Projectiles . | . . . Explosions 1 | . 1 . Melee . | . . . Knockbacks . | . . . Impact . | . . . Kinetic . | . . . Secondary . | . . . Self-Inflicted Damage 113 | . 113 . Shots 3 | . 3 . Rammed . | . . . Targets Rammed . | . . . Kicked . | . . . Crushed . | . . . Highest Temperature 187 | . 48 187 Average Temperature 35 | . 21 53 Received Heat Transfer 456 | . 171 285 Siege Activations . | . . . Robots Corrupted . | . . . Combat Hostiles . | . . . Parts Fried 2 | . 2 . Impact Corruptions . | . . . Robots Melted . | . . . Combat Hostiles . | . . . Parts Melted . | . . . Heat Transferred 125 | . 75 50 Parts Sabotaged . | . . . Parts Stolen . | . . . Parts Stripped . | . . . Power Chain Reactions 2 | . 1 1 Alert | -11 -10 -9 ------- Run | Yrd Mat Mat Peak Influence 336 | . 336 246 Initial 62 | . . 62 Average 147 | . 189 128 Maximum Alert Level 1 | . 1 1 Low Security (%) 69 | 100 53 80 Level 1 30 | . 46 20 Level 2 . | . . . Level 3 . | . . . Level 4 . | . . . Level 5 . | . . . High Security . | . . . Max Security . | . . . Squads Dispatched 1 | . 1 . Investigation . | . . . Extermination . | . . . Reinforcement 1 | . 1 . Assault . | . . . Garrison . | . . . Intercept . | . . . Searches Triggered . | . . . Construction Impeded . | . . . Haulers Reinforced . | . . . Active Scanning Responses . | . . . Cargo Convoy Interrupts . | . . . Stealth | -11 -10 -9 --------- Run | Yrd Mat Mat Distress Signals 3 | . 1 2 Communications Jammed . | . . . Distress Signals . | . . . Times Spotted 27 | . 11 16 Peak Tracking Total 9 | . 4 9 Tactical Retreats 3 | . 2 1 Traps | -11 -10 -9 ------- Run | Yrd Mat Mat Traps Triggered . | . . . Indirectly . | . . . Trap Hack Attempts . | . . . Triggered . | . . . Disarmed 4 | . 4 . Reprogrammed . | . . . Reused . | . . . Traps Extracted . | . . . Installed . | . . . Triggered . | . . . Machines | -11 -10 -9 ---------- Run | Yrd Mat Mat Machines Disabled 6 | . 2 4 Max in Single Turn 2 | . 2 2 Machines Repaired . | . . . Machines Dismantled . | . . . Machines Sabotaged . | . . . Overloaded Fab Kills . | . . . Hacking | -11 -10 -9 --------- Run | Yrd Mat Mat Machines Accessed 4 | . 4 . Terminals 4 | . 4 . Fabricators . | . . . Repair Stations . | . . . Recycling Units . | . . . Scanalyzers . | . . . Garrison Access . | . . . Total Hacks 8 | . 8 . Successful 4 | . 4 . Failed 4 | . 4 . Catastrophic 1 | . 1 . Database Lockouts . | . . . Manual . | . . . Terminals 8 | . 8 . Fabricators . | . . . Repair Stations . | . . . Recycling Units . | . . . Scanalyzers . | . . . Garrison Access . | . . . Terminal Hacks 4 | . 4 . Robot Analysis 1 | . 1 . Locate Traps 1 | . 1 . Disarm Traps 1 | . 1 . Hauler Manifests 1 | . 1 . Fabricator Hacks . | . . . Repair Station Hacks . | . . . Recycling Unit Hacks . | . . . Scanalyzer . | . . . Garrison Access Hacks . | . . . Unauthorized Hacks . | . . . Terminals . | . . . Fabricators . | . . . Repair Stations . | . . . Recycling Units . | . . . Scanalyzers . | . . . Garrison Access . | . . . Data Cores Recovered . | . . . Used . | . . . Hacking Detections 2 | . 2 . Full Trace Events . | . . . Feedback Events . | . . . Feedback Blocked . | . . . Robot Schematics Acquired . | . . . Robots Built . | . . . Authchips . | . . . Time . | . . . Total Robot Build Rating . | . . . Part Schematics Acquired . | . . . Parts Built . | . . . Authchips . | . . . Time . | . . . Total Part Build Rating . | . . . Parts Repaired . | . . . Time . | . . . Parts Recycled . | . . . Recycled Matter . | . . . Retrieved Matter . | . . . Retrieved Components . | . . . Parts Scanalyzed . | . . . Part Schematics Acquired . | . . . Parts Damaged . | . . . Bothacking | -11 -10 -9 ------------ Run | Yrd Mat Mat Used RIF Installer . | . . . Robots Hacked . | . . . Non-combat . | . . . Combat . | . . . Robot Hacks Applied . | . . . Relay Couplers Released . | . . . Fabnet Peak Effective % . | . . . Robots Rewired . | . . . Allies Hacked . | . . . Hacks Repelled . | . . . Allies | -11 -10 -9 -------- Run | Yrd Mat Mat Total Allies . | . . . Largest Group . | . . . Highest-Rated Group . | . . . Highest-Rated Ally . | . . . Total Orders . | . . . Ally Attacks . | . . . Total Damage . | . . . Kills . | . . . Allies Corrupted . | . . . Allies Melted . | . . . Intel | -11 -10 -9 ------- Run | Yrd Mat Mat Robot Analysis Total 1 | . 1 . Derelict Logs Recovered . | . . . Drone Launches . | . . . Drone Recoveries . | . . . Exploration | -11 -10 -9 ------------- Run | Yrd Mat Mat Turns Passed 1097 | 76 496 525 Spaces Moved 567 | 46 246 275 Core 26 | 11 . 15 Treads 541 | 35 246 260 Legs . | . . . Wheels . | . . . Hover . | . . . Flight . | . . . Fastest Speed 50 | 50 160 50 Average Speed 157 | 133 160 158 Slowest Speed 250 | 160 160 250 Overloaded Moves . | . . . Propulsion Burnouts . | . . . Robots Hopped . | . . . Cave-ins Triggered 1 | . . 1 Exploration Rate (%) 33 | 4 62 34 Regions Visited 2 Branch Regions . Pre-discovered Areas . | . . . Known Exits Taken . | . . . Unknown Exits Taken 2 | 1 1 . Scrap Searched . | . . . Spaces Dug 64 | . 8 56 Terrain Destroyed 150 | . 54 96 Melee . | . . . Projectile . | . . . AOE 150 | . 54 96 Terrain Rammed . | . . . Walls Destroyed . | . . . Machines Disabled . | . . . Actions | -11 -10 -9 --------- Run | Yrd Mat Mat Total 694 | 61 307 326 Wait 9 | . 9 . Move 564 | 45 245 274 Hop . | . . . Pick Up 28 | 10 10 8 Fast Attach 1 | . . 1 Attach 20 | 6 4 10 Detach 1 | . 1 . Swap 3 | . 2 1 Drop 7 | . 4 3 Fire 60 | . 32 28 Melee . | . . . Ram . | . . . Kick . | . . . Crush . | . . . Escape Stasis 1 | . . 1 Rewire . | . . . Trap . | . . . Miscellaneous . | . . . Route ------- -11/Scrapyard -10/Materials (discovered 2 exits: [*Mat] / [*Min]) -9/Materials History --------- Turn | Location | Event 4 | -11/Scrapyard | Discovered new exit (range 14) 77 | -11/Scrapyard | Entered Materials 149 | -10/Materials | Discovered new exit (range 16) 308 | -10/Materials | Build established: Mutant 464 | -10/Materials | Discovered new exit (range 8) 573 | -10/Materials | Entered another Materials area 573 | -9/Materials | Evolved 2 slots: Utility x2 980 | -9/Materials | Crushed by falling debris 1052 | -9/Materials | Core integrity fell below 50% 1069 | -9/Materials | Core integrity fell below 20% 1098 | -9/Materials | Destroyed by G-34 Mercenary with Small Laser Last Messages --------------- U-05 Engineer builds a Wall. System corrupted: IFF burst signal emitted. U-05 Engineer lays Concrete. Lgt. Treads destroyed. Critical hit (Burn: +37). U-05 Engineer lays Concrete. Lgt. EM Pulse Cannon destroyed. W-16 Scout sends out distress signal. R-06 Scavenger collects Lgt. Ion Engine. K-01 Serf suffers critical hit (Burn). System corrupted: Matter fused (-7). Lgt. Treads destroyed. Imp. Ion Engine destroyed. Sml. Storage Unit destroyed. Sensor Array destroyed. Acquired Hrd. Light Armor Plating. Hrd. Light Armor Plating severed. Acquired Hrd. Light Armor Plating. Assault Rifle destroyed. Hrd. Light Armor Plating destroyed. Map ----- +----------------------------------------------------+ | #?????# # #####* #??????????????? | | ####### # """ + =+ """ #??????????????? | | + """ # ##= """ #??????????????? | | # """ # ## """ #??????????????? | | # ##### """ #??????????????? | | #####+####???# ???????????????? | | ######### #???# #??????# ???????????????? | | ????????# !#???# #??????# #??????????????? | | ????????# !%#???# #??????# #??????????????? | | ???????? #??# #??????####+#####??????????????? | | ??????? ? ?????????? ??????????????????? | | ??????? ?????????? ??????????????????? | | ??????* ?????????? ?#???????????????? | | #?????/ # #####??????????? #???????????????? | | #????// #######??????????????? #???????????????? | | #????###?????????????????????? #???????????????? | | #######?###################### #######?????????? | | #?# ????????? | | ### ! ????????? | | %+ % Y ????????? | | =####+########+######Y##### """????????????? | | #?# ## s #?????????????????? | | """ #?# ## gg #?????????????????? | | "R #?# ##! ! #?????????????????? | | ]]] # """ #?# ##!l #?????????????????? | | ]]* # #?# ##!s@ #?????????????????? | | ]]* # """ #?# ## #?????????????????? | | # """ #?# ## #?????????????????? | | ####### """ #?###### #?????????????????? | | ??????# #??????# #?????????????????? | | ??????## #######??????##########?????????????????? | | ????????##???????????????????????????????????????? | | ?????????????????????????????????????????????????? | | ?????????????????????????????????????????????????? | | ?????????????????????????????????????????????????? | | ?????????????????????????????????????????????????? | | ?????????????????????????????????????????????????? | | ?????????????????????????????????????????????????? | | ?????????????????????????????????????????????????? | | ?????????????????????????????????????????????????? | | ?????????????????????????????????????????????????? | | ?????????????????????????????????????????????????? | | ?????????????????????????????????????????????????? | | ?????????????????????????????????????????????????? | | ?????????????????????????????????????????????????? | | ?????????????????????????????????????????????????? | | ?????????????????????????????????????????????????? | | ?????????????????????????????????????????????????? | | ?????????????????????????????????????????????????? | | ?????????????????????????????????????????????????? | +----------------------------------------------------+ Best States ------------- Heat Dissipation 28 Energy Generation 12 Energy Capacity 265 Matter Stores 300 Matter Capacity 300 Sight Range 16 Robot Scan Range 14 Terrain Scan Density 10 ECM Strength 1 Armor Coverage 300 Evasion (%) 50 Targeting Accuracy 5 Recoil Reduction 2 Item Schematics ----------------- None Robot Schematics ------------------ None Fabricated ------------ Nothing Alien Tech Used ----------------- None Achievements -------------- Shopping List Unlikely Earthworm Challenges ------------ None Game ------ Seed BottomlessMeleePendant Manual? 0 Play Time 00:15:59 Cumulative 3.8 hours Start 2024.08.12 @ 23:54:27 End 2024.08.13 @ 00:24:47 Sessions 1 Manual Loads 0 Difficulty Rogue Special Mode None Game No. 7 Rogue 6 Adventurer 1 Explorer 0 Win Type - Total 0 Types 0/0/0/0/0/0/0/0/0 Lore% 2 Gallery% 10 Achievement% 13 Wizard Run 0 Options --------- Layout 1 ASCII 0 Keyboard 0 Movement Mouse Keybinds 0 Fullscreen 1 Font 24/Smallcaps Map View 50x35 Zoom Use 0% Tactical HUD 0 Map Filters NONE Filters NONE Steam 1 RUN: cacbe23b-0fe7-40fb-b8f9-037a3d8b76e2